fUSD/lending_fUSD_20250510
["ID","MTS","AMOUNT","RATE_DAILY","PERIOD"]
[360651879,1746916241398,-400.0,0.00019178,2]
[360651881,1746916241407,-400.0,0.00019178,2]
[360651884,1746916241416,-400.0,0.00019178,2]
[360651886,1746916241430,-400.0,0.00019178,2]
[360651888,1746916241440,-414.93,0.00019178,2]
[360651890,1746916241451,-414.93,0.00019178,2]
[360651892,1746916241461,-400.0,0.00019178,2]
[360651894,1746916241473,-400.0,0.00019178,2]
[360651896,1746916241482,-400.0,0.00019178,2]
[360651898,1746916241491,-283.20240785,0.00019178,2]
[360651900,1746916241501,-400.0,0.00019178,2]
[360651902,1746916241510,-476.31,0.00019178,2]
[360651904,1746916241519,-400.0,0.00019178,2]
[360651906,1746916241528,-400.0,0.00019178,2]
[360651908,1746916241540,-400.0,0.00019178,2]
[360651909,1746916241553,-400.0,0.00019178,2]
[360651911,1746916241563,-400.0,0.00019178,2]
[360651913,1746916241572,-400.0,0.00019178,2]
[360651915,1746916241582,-500.0,0.00019178,2]
[360651917,1746916241591,-500.0,0.00019178,2]
[360651919,1746916241601,-500.0,0.00019178,2]
[360651921,1746916241610,-500.0,0.00019178,2]
[360651923,1746916241620,-500.0,0.00019178,2]
[360651925,1746916241630,-500.0,0.00019178,2]
[360651927,1746916241639,-500.0,0.00019178,2]
[360651930,1746916241648,-500.0,0.00019178,2]
[360651932,1746916241658,-500.0,0.00019178,2]
[360651934,1746916241668,-500.0,0.00019178,2]
[360651936,1746916241677,-400.0,0.00019178,2]
[360651938,1746916241687,-500.0,0.00019178,2]
[360651940,1746916241696,-500.0,0.00019178,2]
[360651942,1746916241705,-500.0,0.00019178,2]
[360651943,1746916241716,-500.0,0.00019178,2]
[360651945,1746916241726,-415.56,0.00019178,2]
[360651947,1746916241735,-485.52907938,0.00019178,2]
[360651949,1746916241744,-500.0,0.00019178,2]
[360651951,1746916241754,-400.0,0.00019178,2]
[360651953,1746916241763,-1574.45,0.00019178,2]
[360651955,1746916241773,-1574.45,0.00019178,2]
[360651957,1746916241782,-400.0,0.00019178,2]
[360651959,1746916241791,-400.0,0.00019178,2]
[360651961,1746916241800,-400.0,0.00019178,2]
[360651963,1746916241811,-400.0,0.00019178,2]
[360651965,1746916241820,-183.1663586,0.00019178,2]
[360651967,1746916241830,-400.0,0.00019178,2]
[360651969,1746916241840,-400.0,0.00019178,2]
[360651971,1746916241850,-400.0,0.00019178,2]
[360651973,1746916241871,-400.0,0.00019178,2]
[360651975,1746916241888,-151.5,0.00019178,2]
[360651977,1746916241898,-400.0,0.00019178,2]
[360651979,1746916241908,-400.0,0.00019178,2]
[360651981,1746916241917,-400.0,0.00019178,2]
[360651983,1746916241927,-1309.99,0.00019178,2]
[360651985,1746916241936,-1309.99,0.00019178,2]
[360651987,1746916241946,-400.0,0.00019178,2]
[360651989,1746916241956,-400.0,0.00019178,2]
[360651991,1746916241965,-533.12,0.00019178,2]
[360651993,1746916241975,-400.0,0.00019178,2]
[360651995,1746916241985,-400.0,0.00019178,2]
[360651997,1746916241994,-400.0,0.00019178,2]
[360651999,1746916242004,-500.0,0.00019178,2]
[360652001,1746916242013,-500.0,0.00019178,2]
[360652003,1746916242023,-500.0,0.00019178,2]
[360652005,1746916242033,-500.0,0.00019178,2]
[360652007,1746916242042,-500.0,0.00019178,2]
[360652009,1746916242051,-500.0,0.00019178,2]
[360652011,1746916242061,-500.0,0.00019178,2]
[360652013,1746916242070,-500.0,0.00019178,2]
[360652015,1746916242079,-500.0,0.00019178,2]
[360652017,1746916242089,-500.0,0.00019178,2]
[360652019,1746916242098,-500.0,0.00019178,2]
[360652021,1746916242108,-500.0,0.00019178,2]
[360652023,1746916242118,-500.0,0.00019178,2]
[360652025,1746916242127,-500.0,0.00019178,2]
[360652027,1746916242137,-500.0,0.00019178,2]
[360652029,1746916242146,-398.55290794,0.00019178,2]
[360652031,1746916242155,-500.0,0.00019178,2]
[360652033,1746916242166,-500.0,0.00019178,2]
[360652035,1746916242176,-400.0,0.00019178,2]
[360652037,1746916242186,-400.0,0.00019178,2]
[360652039,1746916242195,-400.0,0.00019178,2]
[360652041,1746916242205,-467.83081661,0.00019178,2]
[360652043,1746916242214,-235.6351846,0.00019178,2]
[360652045,1746916242225,-400.0,0.00019178,2]
[360652047,1746916242234,-400.0,0.00019178,2]
[360652048,1746916242244,-400.0,0.00019178,2]
[360652051,1746916242254,-400.0,0.00019178,2]
[360652053,1746916242264,-504.36,0.00019178,2]
[360652054,1746916242273,-504.36,0.00019178,2]
[360652056,1746916242283,-400.0,0.00019178,2]
[360652058,1746916242293,-451.26258055,0.00019178,2]
[360652060,1746916242302,-500.0,0.00019178,2]
[360652062,1746916242312,-500.0,0.00019178,2]
[360652064,1746916242322,-400.0,0.00019178,2]
[360652066,1746916242332,-400.0,0.00019178,2]
[360652069,1746916242341,-400.0,0.00019178,2]
[360652071,1746916242351,-400.0,0.00019178,2]
[360652073,1746916242362,-400.0,0.00019178,2]
[360652074,1746916242371,-400.0,0.00019178,2]
[360652076,1746916242380,-400.0,0.00019178,2]
[360652078,1746916242390,-400.0,0.00019178,2]
[360652080,1746916242400,-405.72794422,0.00019178,2]
[360652082,1746916242409,-400.0,0.00019178,2]
[360652084,1746916242419,-400.0,0.00019178,2]
[360652086,1746916242428,-400.0,0.00019178,2]
[360652088,1746916242437,-400.0,0.00019178,2]
[360652090,1746916242448,-400.0,0.00019178,2]
[360652092,1746916242457,-400.0,0.00019178,2]
[360652094,1746916242469,-400.0,0.00019178,2]
[360652096,1746916242479,-400.0,0.00019178,2]
[360652098,1746916242489,-640.73,0.00019178,2]
[360652100,1746916242498,-640.73,0.00019178,2]
[360652102,1746916242508,-1614.91,0.00019178,2]
[360652104,1746916242518,-1614.91,0.00019178,2]
[360652106,1746916242527,-400.0,0.00019178,2]
[360652108,1746916242536,-400.0,0.00019178,2]
[360652110,1746916242547,-400.0,0.00019178,2]
[360652112,1746916242557,-400.0,0.00019178,2]
[360652114,1746916242566,-400.0,0.00019178,2]
[360652115,1746916242575,-400.0,0.00019178,2]
[360652116,1746916242584,-400.0,0.00019178,2]
[360652117,1746916242593,-37570.48,0.00019178,2]
[360652118,1746916242602,-400.0,0.00019178,2]
[360652119,1746916242611,-37570.48,0.00019178,2]
[360652120,1746916242620,-400.0,0.00019178,2]
[360652121,1746916242630,-400.0,0.00019178,2]
[360652122,1746916242639,-400.0,0.00019178,2]
[360652123,1746916242649,-400.0,0.00019178,2]
[360652124,1746916242658,-400.0,0.00019178,2]
[360652125,1746916242667,-400.0,0.00019178,2]
[360652126,1746916242677,-400.0,0.00019178,2]
[360652127,1746916242686,-1005.36,0.00019178,2]
[360652128,1746916242696,-1005.36,0.00019178,2]
[360652129,1746916242706,-400.0,0.00019178,2]
[360652130,1746916242715,-400.0,0.00019178,2]
[360652131,1746916242725,-400.0,0.00019178,2]
[360652132,1746916242734,-400.0,0.00019178,2]
[360652133,1746916242744,-400.0,0.00019178,2]
[360652134,1746916242754,-791.51,0.00019178,2]
[360652136,1746916242763,-400.0,0.00019178,2]
[360652138,1746916242773,-791.51,0.00019178,2]
[360652140,1746916242783,-400.0,0.00019178,2]
[360652142,1746916242792,-400.0,0.00019178,2]
[360652144,1746916242802,-400.0,0.00019178,2]
[360652146,1746916242811,-400.0,0.00019178,2]
[360652148,1746916242820,-400.0,0.00019178,2]
[360652150,1746916242830,-400.0,0.00019178,2]
[360652152,1746916242839,-400.0,0.00019178,2]
[360652154,1746916242849,-400.0,0.00019178,2]
[360652156,1746916242858,-601.6,0.00019178,2]
[360652158,1746916242867,-601.6,0.00019178,2]
[360652160,1746916242877,-400.0,0.00019178,2]
[360652162,1746916242886,-400.0,0.00019178,2]
[360652164,1746916242895,-1599.09,0.00019178,2]
[360652166,1746916242905,-400.0,0.00019178,2]
[360652168,1746916242915,-1599.09,0.00019178,2]
[360652169,1746916242924,-400.0,0.00019178,2]
[360652171,1746916242934,-400.0,0.00019178,2]
[360652173,1746916242944,-400.0,0.00019178,2]
[360652175,1746916242954,-688.95,0.00019178,2]
[360652178,1746916242964,-400.0,0.00019178,2]
[360652179,1746916242973,-688.95,0.00019178,2]
[360652181,1746916242983,-400.0,0.00019178,2]
[360652183,1746916242992,-400.0,0.00019178,2]
[360652185,1746916243002,-400.0,0.00019178,2]
[360652187,1746916243012,-400.0,0.00019178,2]
[360652189,1746916243022,-400.0,0.00019178,2]
[360652191,1746916243031,-400.0,0.00019178,2]
[360652193,1746916243042,-1090.23,0.00019178,2]
[360652195,1746916243052,-1090.23,0.00019178,2]
[360652197,1746916243061,-400.0,0.00019178,2]
[360652199,1746916243071,-445.12,0.00019178,2]
[360652201,1746916243081,-400.0,0.00019178,2]
[360652203,1746916243090,-445.12,0.00019178,2]
[360652205,1746916243099,-400.0,0.00019178,2]
[360652207,1746916243108,-400.0,0.00019178,2]
[360652209,1746916243118,-400.0,0.00019178,2]
[360652211,1746916243127,-400.0,0.00019178,2]
[360652213,1746916243138,-400.0,0.00019178,2]
[360652215,1746916243147,-400.0,0.00019178,2]
[360652217,1746916243157,-635.32,0.00019178,2]
[360652219,1746916243167,-635.32,0.00019178,2]
[360652221,1746916243176,-1025.04,0.00019178,2]
[360652223,1746916243186,-1025.04,0.00019178,2]
[360652225,1746916243195,-400.0,0.00019178,2]
[360652227,1746916243206,-400.0,0.00019178,2]
[360652229,1746916243215,-400.0,0.00019178,2]
[360652230,1746916243225,-400.0,0.00019178,2]
[360652231,1746916243235,-1583.58,0.00019178,2]
[360652232,1746916243245,-457.38569799,0.00019178,2]
[360652233,1746916243254,-1583.58,0.00019178,2]
[360652234,1746916243264,-400.0,0.00019178,2]
[360652235,1746916243273,-1006.69,0.00019178,2]
[360652236,1746916243282,-400.0,0.00019178,2]
[360652237,1746916243292,-1006.69,0.00019178,2]
[360652238,1746916243301,-400.0,0.00019178,2]
[360652239,1746916243311,-400.0,0.00019178,2]
[360652240,1746916243321,-450.0,0.00019178,2]
[360652241,1746916243331,-400.0,0.00019178,2]
[360652242,1746916243340,-400.0,0.00019178,2]
[360652243,1746916243350,-731.49,0.00019178,2]
[360652244,1746916243359,-731.49,0.00019178,2]
[360652245,1746916243368,-400.0,0.00019178,2]
[360652246,1746916243378,-400.0,0.00019178,2]
[360652247,1746916243388,-400.0,0.00019178,2]
[360652248,1746916243397,-400.0,0.00019178,2]
[360652249,1746916243406,-506.48650344,0.00019178,2]
[360652250,1746916243416,-400.0,0.00019178,2]
[360652251,1746916243426,-400.0,0.00019178,2]
[360652252,1746916243435,-400.0,0.00019178,2]
[360652253,1746916243445,-400.0,0.00019178,2]
[360652254,1746916243459,-400.0,0.00019178,2]
[360652255,1746916243472,-474.22300564,0.00019178,2]
[360652256,1746916243482,-400.0,0.00019178,2]
[360652257,1746916243491,-400.0,0.00019178,2]
[360652259,1746916243501,-400.0,0.00019178,2]
[360652261,1746916243511,-400.0,0.00019178,2]
[360652263,1746916243520,-400.0,0.00019178,2]
[360652265,1746916243530,-806.22,0.00019178,2]
[360652267,1746916243540,-806.22,0.00019178,2]
[360652269,1746916243550,-151.0,0.00019178,2]
[360652270,1746916243559,-1500.0,0.00019178,2]
[360652272,1746916243569,-173.39,0.00019178,2]
[360652274,1746916243578,-400.0,0.00019178,2]
[360652276,1746916243587,-163.3379464,0.00019179,2]
[360652278,1746916243597,-400.0,0.00019179,2]
[360652280,1746916243607,-400.0,0.00019179,2]
[360652282,1746916243616,-497.306792,0.00019179,2]
[360652284,1746916243626,-400.0,0.00019179,2]
[360652286,1746916243636,-325.77874714,0.00019179,2]
[360652288,1746916243645,-400.0,0.00019179,2]
[360652289,1746916243654,-400.0,0.00019179,2]
[360652291,1746916243664,-400.0,0.00019179,2]
[360652293,1746916243673,-400.0,0.00019179,2]
[360652295,1746916243683,-400.0,0.00019179,2]
[360652297,1746916243693,-394.19,0.00019179,2]
[360652299,1746916243704,-400.0,0.00019179,2]
[360652301,1746916243714,-400.0,0.00019179,2]
[360652303,1746916243723,-400.0,0.00019179,2]
[360652305,1746916243733,-400.0,0.00019179,2]
[360652307,1746916243743,-400.0,0.00019179,2]
[360652309,1746916243752,-400.0,0.00019179,2]
[360652310,1746916243762,-400.0,0.00019179,2]
[360652312,1746916243771,-400.0,0.00019179,2]
[360652314,1746916243781,-676.43,0.00019179,2]
[360652316,1746916243791,-405.07913449,0.00019179,2]
[360652318,1746916243802,-400.0,0.00019179,2]
[360652319,1746916243812,-400.0,0.00019179,2]
[360652320,1746916243822,-400.0,0.00019179,2]
[360652321,1746916243831,-400.0,0.00019179,2]
[360652322,1746916243849,-290.61,0.00019179,2]
[360652323,1746916243860,-400.0,0.00019179,2]
[360652324,1746916243870,-467.65597295,0.00019179,2]
[360652325,1746916243880,-400.0,0.00019179,2]
[360652326,1746916243890,-400.0,0.00019179,2]
[360652327,1746916243900,-300.0,0.00019179,2]
[360652328,1746916243910,-443.67,0.00019179,2]
[360652329,1746916243919,-153.29453,0.0001918,2]
[360652330,1746916243929,-400.0,0.00019184,2]
[360652331,1746916243939,-400.0,0.00019184,2]
[360652332,1746916243949,-400.0,0.00019184,2]
[360652333,1746916243960,-495.38,0.00019184,2]
[360652334,1746916243969,-400.0,0.00019184,2]
[360652335,1746916243979,-400.0,0.00019184,2]
[360652336,1746916243988,-2659.81,0.00019184,2]
[360652337,1746916243999,-400.0,0.00019184,2]
[360652338,1746916244009,-400.0,0.00019184,2]
[360652339,1746916244018,-400.0,0.00019184,2]
[360652340,1746916244028,-400.0,0.00019184,2]
[360652341,1746916244038,-414.93,0.00019184,2]
[360652342,1746916244048,-400.0,0.00019184,2]
[360652343,1746916244059,-1574.45,0.00019184,2]
[360652344,1746916244069,-1309.99,0.00019184,2]
[360652345,1746916244079,-400.0,0.00019184,2]
[360652346,1746916244089,-400.0,0.00019184,2]
[360652347,1746916244099,-504.36,0.00019184,2]
[360652348,1746916244110,-400.0,0.00019184,2]
[360652349,1746916244121,-400.0,0.00019184,2]
[360652350,1746916244132,-400.0,0.00019184,2]
[360652351,1746916244143,-640.73,0.00019184,2]
[360652352,1746916244155,-1614.91,0.00019184,2]
[360652353,1746916244165,-400.0,0.00019184,2]
[360652354,1746916244175,-37570.48,0.00019184,2]
[360652355,1746916244186,-400.0,0.00019184,2]
[360652356,1746916244196,-1005.36,0.00019184,2]
[360652357,1746916244206,-791.51,0.00019184,2]
[360652358,1746916244216,-1599.09,0.00019184,2]
[360652359,1746916244226,-400.0,0.00019184,2]
[360652360,1746916244236,-1090.23,0.00019184,2]
[360652361,1746916244247,-316.28,0.00019184,2]
[360652362,1746916244258,-635.32,0.00019184,2]
[360652363,1746916244267,-400.0,0.00019184,2]
[360652364,1746916244277,-1583.58,0.00019184,2]
[360652365,1746916244288,-731.49,0.00019184,2]
[360652366,1746916244297,-806.22,0.00019184,2]
[360652367,1746916244307,-500.0,0.00019184,2]
[360652368,1746916244318,-73490.41959867,0.00019185,2]
[360652369,1746916244328,-161.34051929,0.00019195,2]
[360652370,1746916244338,-151.0,0.0001922,2]
[360652371,1746916244349,-151.0,0.00019228,2]
[360652372,1746916244359,-151.0,0.0001924,2]
[360652373,1746916244369,-151.0,0.0001925,2]
[360652374,1746916244379,-2041.30259726,0.00019255,2]
[360652375,1746916244389,-151.31421243,0.0001926,2]
[360652376,1746916244400,-1782.86416915,0.00019275,2]
[360652377,1746916244410,-236.0,0.000193,2]
[360652378,1746916244421,-995.4,0.000193,2]
[360652379,1746916244431,-374.0,0.000193,2]
[360652380,1746916244442,-765.0,0.000193,2]
[360652381,1746916244453,-161.34051929,0.00019313,2]
[360652382,1746916244465,-1034.07046323,0.00019341,2]
[360652383,1746916244477,-151.31421243,0.00019342,2]
[360652384,1746916244487,-2041.30259726,0.00019347,2]
[360652385,1746916244498,-500.0,0.00019392,2]
[360652386,1746916244508,-500.0,0.00019393,2]
[360652387,1746916244518,-453.0,0.000194,2]
[360652388,1746916244529,-151.31421243,0.00019425,2]
[360652389,1746916244539,-161.34051929,0.0001943,2]
[360652390,1746916244551,-2041.30259726,0.00019439,2]
[360652391,1746916244561,-500.0,0.00019443,2]
[360652392,1746916244571,-500.0,0.00019444,2]
[360652393,1746916244581,-153.0,0.00019444,2]
[360652394,1746916244591,-879.0,0.00019444,2]
[360652395,1746916244603,-1000.0,0.00019452,2]
[360652396,1746916244612,-1000.0,0.00019452,2]
[360652397,1746916244622,-1000.0,0.00019452,2]
[360652398,1746916244632,-1000.0,0.00019452,2]
[360652399,1746916244642,-1000.0,0.00019452,2]
[360652400,1746916244652,-1000.0,0.00019452,2]
[360652401,1746916244662,-756.0,0.00019452,2]
[360652402,1746916244672,-300.0,0.00019492,2]
[360652403,1746916244682,-151.31421243,0.00019507,2]
[360652404,1746916244692,-2041.30259726,0.00019531,2]
[360652405,1746916244703,-538.448,0.00019543,2]
[360652406,1746916244712,-161.34051929,0.00019548,2]
[360652407,1746916244723,-215.0738,0.00019587,2]
[360652408,1746916244735,-151.31421243,0.00019589,2]
[360652409,1746916244746,-155.5948655,0.00019616,2]
[360652410,1746916244756,-400.0,0.0001962,2]
[360652411,1746916244767,-400.0,0.0001962,2]
[360652412,1746916244778,-400.0,0.0001962,2]
[360652413,1746916244789,-293.04,0.0001962,2]
[360652414,1746916244801,-400.0,0.0001962,2]
[360652415,1746916244811,-400.0,0.0001962,2]
[360652416,1746916244823,-400.0,0.0001962,2]
[360652417,1746916244835,-400.0,0.0001962,2]
[360652418,1746916244848,-400.0,0.0001962,2]
[360652419,1746916244858,-500.0,0.0001962,2]
[360652420,1746916244868,-400.0,0.0001962,2]
[360652421,1746916244878,-400.0,0.0001962,2]
[360652422,1746916244888,-400.0,0.0001962,2]
[360652423,1746916244899,-5827.04483903,0.00019621,2]
[360652424,1746916244910,-2041.30259726,0.00019623,2]
[360652425,1746916244922,-201.19737534,0.00019633,2]
[360652426,1746916244933,-189.756,0.00019637,2]
[360652427,1746916244944,-150.351,0.00019637,2]
[360652430,1746916244954,-243.179,0.00019637,2]
[360652433,1746916244964,-150.0,0.00019637,2]
[360652435,1746916244974,-1247.0,0.00019637,2]
[360652437,1746916244984,-552.0,0.00019637,2]
[360652439,1746916244995,-917.0,0.00019637,2]
[360652441,1746916245005,-1455.0,0.00019637,2]
[360652443,1746916245015,-583.0,0.00019637,2]
[360652446,1746916245026,-1303.0,0.00019637,2]
[360652448,1746916245036,-6813.0,0.00019637,2]
[360652452,1746916245046,-929.0,0.00019637,2]
[360652457,1746916245056,-161.34051929,0.00019665,2]
[360652459,1746916245066,-151.31421243,0.00019671,2]
[360652462,1746916245076,-400.0,0.00019698,2]
[360652464,1746916245085,-1180.08,0.00019698,2]
[360652465,1746916245095,-400.0,0.00019698,2]
[360652466,1746916245104,-272.6,0.00019698,2]
[360652468,1746916245114,-400.0,0.00019698,2]
[360652470,1746916245128,-400.0,0.00019698,2]
[360652472,1746916245139,-910.46,0.00019698,2]
[360652474,1746916245150,-478.37157044,0.00019698,2]
[360652476,1746916245161,-658.4,0.00019698,2]
[360652478,1746916245171,-400.0,0.00019698,2]
[360652480,1746916245181,-400.0,0.00019698,2]
[360652482,1746916245192,-400.0,0.00019698,2]
[360652485,1746916245203,-400.0,0.00019698,2]
[360652487,1746916245212,-400.0,0.00019698,2]
[360652489,1746916245222,-400.0,0.00019698,2]
[360652491,1746916245231,-400.0,0.00019698,2]
[360652493,1746916245242,-400.0,0.00019698,2]
[360652495,1746916245253,-156.56428303,0.00019698,2]
[360652497,1746916245263,-400.0,0.00019698,2]
[360652499,1746916245274,-400.0,0.00019698,2]
[360652501,1746916245284,-500.0,0.00019698,2]
[360652503,1746916245295,-400.0,0.00019698,2]
[360652506,1746916245305,-400.0,0.00019698,2]
[360652508,1746916245315,-400.0,0.00019698,2]
[360652510,1746916245324,-676.43,0.00019698,2]
[360652512,1746916245334,-400.0,0.00019698,2]
[360652514,1746916245344,-400.0,0.00019698,2]
[360652516,1746916245354,-400.0,0.00019698,2]
[360652518,1746916245363,-300.0,0.00019698,2]
[360652520,1746916245373,-431.4,0.00019698,2]
[360652521,1746916245383,-400.0,0.00019698,2]
[360652522,1746916245394,-400.0,0.00019698,2]
[360652523,1746916245404,-400.0,0.00019698,2]
[360652524,1746916245414,-400.0,0.00019698,2]
[360652525,1746916245427,-1000.0,0.00019698,2]
[360652526,1746916245438,-400.0,0.00019698,2]
[360652527,1746916245448,-300.0,0.00019698,2]
[360652528,1746916245459,-400.0,0.00019698,2]
[360652529,1746916245472,-400.0,0.00019698,2]
[360652530,1746916245482,-2045.21,0.00019698,2]
[360652531,1746916245492,-400.0,0.00019698,2]
[360652532,1746916245502,-400.0,0.00019698,2]
[360652533,1746916245514,-1037.71,0.00019698,2]
[360652534,1746916245525,-400.0,0.00019698,2]
[360652535,1746916245537,-1451.67,0.00019698,2]
[360652536,1746916245548,-1289.89,0.00019698,2]
[360652537,1746916245558,-400.0,0.00019698,2]
[360652538,1746916245569,-400.0,0.00019698,2]
[360652539,1746916245579,-652.95,0.00019698,2]
[360652540,1746916245590,-450.09,0.00019698,2]
[360652541,1746916245600,-400.0,0.00019698,2]
[360652542,1746916245611,-400.0,0.00019698,2]
[360652543,1746916245621,-400.0,0.00019698,2]
[360652544,1746916245632,-400.0,0.00019698,2]
[360652545,1746916245642,-400.0,0.00019698,2]
[360652546,1746916245652,-400.0,0.00019698,2]
[360652547,1746916245663,-562.17,0.00019698,2]
[360652548,1746916245673,-400.0,0.00019698,2]
[360652549,1746916245683,-400.0,0.00019698,2]
[360652550,1746916245693,-466.9,0.00019698,2]
[360652551,1746916245703,-400.0,0.00019698,2]
[360652552,1746916245714,-400.0,0.00019698,2]
[360652553,1746916245724,-400.0,0.00019698,2]
[360652554,1746916245735,-400.0,0.00019698,2]
[360652555,1746916245746,-400.0,0.00019698,2]
[360652556,1746916245757,-461.0,0.00019698,2]
[360652557,1746916245767,-400.0,0.00019698,2]
[360652558,1746916245778,-237.98,0.00019698,2]
[360652559,1746916245788,-400.0,0.00019698,2]
[360652560,1746916245798,-202.26,0.00019698,2]
[360652561,1746916245809,-400.0,0.00019698,2]
[360652562,1746916245819,-219.73,0.00019698,2]
[360652563,1746916245829,-400.0,0.00019698,2]
[360652565,1746916245839,-601.6,0.00019698,2]
[360652567,1746916245849,-400.0,0.00019698,2]
[360652569,1746916245860,-688.95,0.00019698,2]
[360652571,1746916245870,-400.0,0.00019698,2]
[360652574,1746916245880,-445.12,0.00019698,2]
[360652576,1746916245890,-400.0,0.00019698,2]
[360652578,1746916245901,-1025.04,0.00019698,2]
[360652580,1746916245911,-400.0,0.00019698,2]
[360652582,1746916245921,-1006.69,0.00019698,2]
[360652584,1746916245932,-400.0,0.00019698,2]
[360652586,1746916245942,-400.0,0.00019698,2]
[360652588,1746916245952,-69173.15331981,0.00019699,2]
[360652590,1746916245962,-5000.0,0.000197,2]
[360652592,1746916245972,-420.0,0.00019706,2]
[360652594,1746916245983,-155.5948655,0.00019711,2]
[360652596,1746916245993,-2041.30259726,0.00019715,2]
[360652598,1746916246004,-500.0,0.00019726,2]
[360652600,1746916246015,-156.587,0.00019726,2]
[360652602,1746916246026,-400.0,0.00019743,2]
[360652604,1746916246036,-400.0,0.00019743,2]
[360652606,1746916246046,-400.0,0.00019743,2]
[360652608,1746916246056,-400.0,0.00019743,2]
[360652610,1746916246067,-463.09,0.00019743,2]
[360652611,1746916246077,-791.51,0.00019743,2]
[360652612,1746916246087,-400.0,0.00019743,2]
[360652613,1746916246097,-400.0,0.00019743,2]
[360652614,1746916246109,-731.49,0.00019743,2]
[360652615,1746916246120,-400.0,0.00019744,2]
[360652616,1746916246130,-400.0,0.00019744,2]
[360652617,1746916246141,-400.0,0.00019744,2]
[360652618,1746916246152,-495.38,0.00019744,2]
[360652619,1746916246162,-379.06,0.00019744,2]
[360652620,1746916246174,-400.0,0.00019744,2]
[360652621,1746916246184,-400.0,0.00019744,2]
[360652622,1746916246196,-400.0,0.00019744,2]
[360652623,1746916246206,-400.0,0.00019744,2]
[360652624,1746916246216,-400.0,0.00019744,2]
[360652625,1746916246227,-400.0,0.00019744,2]
[360652627,1746916246237,-400.0,0.00019744,2]
[360652628,1746916246247,-528.42922394,0.00019744,2]
[360652629,1746916246258,-2659.81,0.00019744,2]
[360652631,1746916246268,-400.0,0.00019744,2]
[360652632,1746916246278,-400.0,0.00019744,2]
[360652633,1746916246288,-400.0,0.00019744,2]
[360652634,1746916246298,-400.0,0.00019744,2]
[360652635,1746916246309,-400.0,0.00019744,2]
[360652636,1746916246319,-400.0,0.00019744,2]
[360652637,1746916246330,-400.0,0.00019744,2]
[360652638,1746916246340,-400.0,0.00019744,2]
[360652639,1746916246351,-514.97216828,0.00019744,2]
[360652640,1746916246361,-400.0,0.00019744,2]
[360652641,1746916246371,-400.0,0.00019744,2]
[360652642,1746916246381,-400.0,0.00019744,2]
[360652643,1746916246391,-400.0,0.00019744,2]
[360652644,1746916246402,-400.0,0.00019744,2]
[360652645,1746916246412,-400.0,0.00019744,2]
[360652646,1746916246422,-400.0,0.00019744,2]
[360652647,1746916246433,-400.0,0.00019744,2]
[360652648,1746916246443,-400.0,0.00019744,2]